fUST/lending_fUST_20240121
["ID","MTS","AMOUNT","RATE_DAILY","PERIOD"]
[312370330,1705840240407,-500.0,0.00027397,2]
[312370331,1705840240417,-500.0,0.00027397,2]
[312370332,1705840240426,-500.0,0.00027397,2]
[312370333,1705840240436,-502.39572461,0.00027397,2]
[312370334,1705840240445,-500.0,0.00027397,2]
[312370335,1705840240454,-368.94436176,0.00027397,2]
[312370336,1705840240463,-500.0,0.00027397,2]
[312370337,1705840240472,-500.0,0.00027397,2]
[312370338,1705840240482,-1479.67,0.00027397,2]
[312370340,1705840240491,-500.0,0.00027397,2]
[312370342,1705840240500,-1932.46,0.00027397,2]
[312370343,1705840240510,-500.0,0.00027397,2]
[312370344,1705840240518,-234.44431672,0.00027397,2]
[312370345,1705840240527,-500.0,0.00027397,2]
[312370346,1705840240536,-500.0,0.00027397,2]
[312370347,1705840240545,-500.0,0.00027397,2]
[312370348,1705840240554,-500.0,0.00027397,2]
[312370349,1705840240563,-500.0,0.00027397,2]
[312370350,1705840240573,-500.0,0.00027397,2]
[312370351,1705840240582,-500.0,0.00027397,2]
[312370352,1705840240591,-973.14,0.00027397,2]
[312370353,1705840240600,-1088.96,0.00027397,2]
[312370354,1705840240609,-500.0,0.00027397,2]
[312370355,1705840240618,-500.0,0.00027397,2]
[312370356,1705840240627,-500.0,0.00027397,2]
[312370357,1705840240636,-500.0,0.00027397,2]
[312370358,1705840240645,-500.0,0.00027397,2]
[312370359,1705840240654,-1000.0,0.00027397,2]
[312370360,1705840240663,-1035.93563138,0.00027397,2]
[312370361,1705840240672,-695.17,0.00027397,2]
[312370362,1705840240681,-500.0,0.00027397,2]
[312370363,1705840240690,-500.0,0.00027397,2]
[312370364,1705840240699,-500.0,0.00027397,2]
[312370365,1705840240709,-500.0,0.00027397,2]
[312370366,1705840240719,-579.18,0.00027397,2]
[312370367,1705840240727,-532.99,0.00027397,2]
[312370368,1705840240736,-689.35,0.00027397,2]
[312370369,1705840240744,-753.26,0.00027397,2]
[312370370,1705840240753,-500.0,0.00027397,2]
[312370372,1705840240762,-514.32,0.00027397,2]
[312370374,1705840240771,-2260.2,0.00027397,2]
[312370376,1705840240780,-500.0,0.00027397,2]
[312370378,1705840240790,-500.0,0.00027397,2]
[312370380,1705840240799,-500.0,0.00027397,2]
[312370382,1705840240808,-1240.77,0.00027397,2]
[312370384,1705840240817,-500.0,0.00027397,2]
[312370385,1705840240827,-646.96,0.00027397,2]
[312370386,1705840240836,-500.0,0.00027397,2]
[312370388,1705840240845,-672.79,0.00027397,2]
[312370390,1705840240854,-500.0,0.00027397,2]
[312370392,1705840240863,-253.62744045,0.00027503,2]
[312370394,1705840240876,-500.0,0.00027671,2]
[312370396,1705840240885,-500.0,0.00027671,2]
[312370398,1705840240894,-500.0,0.00027671,2]
[312370400,1705840240903,-618.6,0.00027671,2]
[312370402,1705840240913,-500.0,0.00027671,2]
[312370404,1705840240922,-500.0,0.00027671,2]
[312370406,1705840240931,-500.0,0.00027671,2]
[312370408,1705840240940,-500.0,0.00027671,2]
[312370410,1705840240949,-219.39829432,0.00027671,2]
[312370411,1705840240961,-607.21258544,0.00027671,2]
[312370412,1705840240970,-500.0,0.00027671,2]
[312370413,1705840240979,-500.0,0.00027671,2]
[312370414,1705840240988,-503.44,0.00027671,2]
[312370415,1705840240998,-500.0,0.00027671,2]
[312370416,1705840241006,-500.0,0.00027671,2]
[312370417,1705840241016,-500.0,0.00027671,2]
[312370418,1705840241025,-500.0,0.00027671,2]
[312370419,1705840241035,-500.0,0.00027671,2]
[312370420,1705840241044,-272.10921879,0.00027671,2]
[312370421,1705840241052,-519.56,0.00027671,2]
[312370422,1705840241061,-500.0,0.00027671,2]
[312370423,1705840241070,-500.0,0.00027671,2]
[312370424,1705840241078,-500.0,0.00027671,2]
[312370425,1705840241087,-916.26,0.00027671,2]
[312370426,1705840241097,-500.0,0.00027671,2]
[312370427,1705840241106,-500.0,0.00027671,2]
[312370428,1705840241116,-500.0,0.00027671,2]
[312370429,1705840241125,-500.0,0.00027671,2]
[312370430,1705840241134,-500.0,0.00027671,2]
[312370431,1705840241143,-500.0,0.00027671,2]
[312370432,1705840241152,-491.83100302,0.00027671,2]
[312370433,1705840241161,-500.0,0.00027671,2]
[312370434,1705840241170,-500.0,0.00027671,2]
[312370435,1705840241179,-500.0,0.00027671,2]
[312370436,1705840241189,-500.0,0.00027671,2]
[312370437,1705840241198,-500.0,0.00027671,2]
[312370438,1705840241207,-704.47,0.00027671,2]
[312370439,1705840241215,-461.06310589,0.00027671,2]
[312370440,1705840241224,-500.0,0.00027671,2]
[312370441,1705840241233,-500.0,0.00027671,2]
[312370442,1705840241242,-1541.91,0.00027671,2]
[312370443,1705840241251,-500.0,0.00027671,2]
[312370444,1705840241260,-500.0,0.00027671,2]
[312370445,1705840241269,-2181.38,0.00027671,2]
[312370446,1705840241278,-500.0,0.00027671,2]
[312370447,1705840241287,-540.66,0.00027671,2]
[312370448,1705840241296,-500.0,0.00027671,2]
[312370449,1705840241305,-500.0,0.00027671,2]
[312370450,1705840241313,-500.0,0.00027671,2]
[312370451,1705840241322,-500.0,0.00027671,2]
[312370452,1705840241331,-500.0,0.00027671,2]
[312370453,1705840241340,-500.0,0.00027671,2]
[312370454,1705840241349,-500.0,0.00027671,2]
[312370455,1705840241358,-500.0,0.00027671,2]
[312370456,1705840241366,-500.0,0.00027671,2]
[312370457,1705840241376,-635.76,0.00027671,2]
[312370458,1705840241385,-500.0,0.00027671,2]
[312370459,1705840241394,-161.90922451,0.00027671,2]
[312370460,1705840241403,-500.0,0.00027671,2]
[312370461,1705840241412,-803.85,0.00027671,2]
[312370462,1705840241421,-1170.33,0.00027671,2]
[312370463,1705840241430,-543.14,0.00027671,2]
[312370464,1705840241440,-500.0,0.00027671,2]
[312370465,1705840241449,-500.0,0.00027671,2]
[312370466,1705840241458,-958.48,0.00027671,2]
[312370467,1705840241467,-578.89876639,0.00027671,2]
[312370468,1705840241477,-500.0,0.00027671,2]
[312370470,1705840241486,-635.09409902,0.00027671,2]
[312370472,1705840241494,-500.0,0.00027671,2]
[312370474,1705840241503,-1633.95,0.00027671,2]
[312370476,1705840241512,-291.13137368,0.00027671,2]
[312370478,1705840241521,-500.0,0.00027671,2]
[312370480,1705840241530,-500.0,0.00027671,2]
[312370482,1705840241540,-500.0,0.00027671,2]
[312370484,1705840241549,-500.0,0.00027671,2]
[312370486,1705840241557,-1728.01,0.00027671,2]
[312370488,1705840241567,-500.0,0.00027671,2]
[312370490,1705840241575,-952.8,0.00027671,2]
[312370492,1705840241585,-500.0,0.00027671,2]
[312370494,1705840241594,-500.0,0.00027671,2]
[312370495,1705840241603,-500.0,0.00027671,2]
[312370497,1705840241613,-536.42,0.00027671,2]
[312370499,1705840241621,-952.24,0.00027671,2]
[312370502,1705840241631,-500.0,0.00027671,2]
[312370504,1705840241641,-861.77,0.00027671,2]
[312370506,1705840241650,-500.0,0.00027671,2]
[312370508,1705840241659,-4977.87,0.00027671,2]
[312370509,1705840241667,-16015.78,0.00027671,2]
[312370511,1705840241676,-500.0,0.00027671,2]
[312370513,1705840241686,-500.0,0.00027671,2]
[312370515,1705840241695,-500.0,0.00027671,2]
[312370517,1705840241704,-1087.03,0.00027671,2]
[312370519,1705840241713,-500.0723576,0.00027671,2]
[312370521,1705840241722,-500.0,0.00027671,2]
[312370523,1705840241731,-652.2,0.00027671,2]
[312370525,1705840241741,-500.0,0.00027671,2]
[312370527,1705840241750,-500.0,0.00027671,2]
[312370530,1705840241759,-500.0,0.00027671,2]
[312370532,1705840241769,-502.39253429,0.00027671,2]
[312370534,1705840241778,-500.0,0.00027671,2]
[312370536,1705840241787,-500.0,0.00027671,2]
[312370538,1705840241796,-7546.36,0.00027671,2]
[312370540,1705840241805,-1011.81,0.00027671,2]
[312370542,1705840241814,-171.16187186,0.00027671,2]
[312370544,1705840241823,-500.0,0.00027671,2]
[312370546,1705840241832,-500.0,0.00027671,2]
[312370548,1705840241842,-500.0,0.00027671,2]
[312370550,1705840241851,-2594.81,0.00027671,2]
[312370552,1705840241860,-880.16,0.00027671,2]
[312370554,1705840241869,-511.9404377,0.00027671,2]
[312370555,1705840241880,-500.0,0.00027671,2]
[312370558,1705840241890,-4983.37,0.00027671,2]
[312370560,1705840241899,-500.0,0.00027671,2]
[312370562,1705840241908,-500.0,0.00027671,2]
[312370563,1705840241918,-500.0,0.00027671,2]
[312370565,1705840241927,-500.0,0.00027671,2]
[312370567,1705840241937,-500.0,0.00027671,2]
[312370570,1705840241947,-6897.52,0.00027671,2]
[312370572,1705840241957,-500.0,0.00027671,2]
[312370574,1705840241967,-500.0,0.00027671,2]
[312370576,1705840241976,-500.0,0.00027671,2]
[312370577,1705840241985,-500.0,0.00027671,2]
[312370579,1705840241995,-4199.62,0.00027671,2]
[312370581,1705840242004,-1073.8,0.00027671,2]
[312370583,1705840242013,-6888.73,0.00027671,2]
[312370586,1705840242027,-1239.46,0.00027671,2]
[312370587,1705840242067,-1032.53,0.00027671,2]
[312370589,1705840242077,-11828.99,0.00027671,2]
[312370592,1705840242086,-1691.9,0.00027671,2]
[312370594,1705840242095,-500.0,0.00027671,2]
[312370595,1705840242105,-500.0,0.00027671,2]
[312370597,1705840242113,-500.0,0.00027671,2]
[312370599,1705840242123,-500.0,0.00027671,2]
[312370601,1705840242132,-500.0,0.00027671,2]
[312370603,1705840242142,-500.0,0.00027671,2]
[312370605,1705840242151,-500.0,0.00027671,2]
[312370608,1705840242160,-500.0,0.00027671,2]
[312370609,1705840242169,-500.0,0.00027671,2]
[312370612,1705840242179,-526.31782774,0.00027671,2]
[312370614,1705840242189,-500.0,0.00027671,2]
[312370616,1705840242198,-1479.67,0.00027671,2]
[312370617,1705840242207,-500.0,0.00027671,2]
[312370620,1705840242216,-1932.46,0.00027671,2]
[312370621,1705840242225,-500.0,0.00027671,2]
[312370623,1705840242234,-500.0,0.00027671,2]
[312370626,1705840242243,-500.0,0.00027671,2]
[312370627,1705840242252,-500.0,0.00027671,2]
[312370629,1705840242262,-250.97839217,0.00027671,2]
[312370631,1705840242271,-500.0,0.00027671,2]
[312370633,1705840242280,-500.0,0.00027671,2]
[312370635,1705840242288,-973.14,0.00027671,2]
[312370637,1705840242297,-1088.96,0.00027671,2]
[312370639,1705840242306,-500.0,0.00027671,2]
[312370641,1705840242315,-500.0,0.00027671,2]
[312370643,1705840242324,-500.0,0.00027671,2]
[312370645,1705840242333,-500.0,0.00027671,2]
[312370647,1705840242342,-500.0,0.00027671,2]
[312370649,1705840242351,-1000.0,0.00027671,2]
[312370651,1705840242360,-695.17,0.00027671,2]
[312370653,1705840242369,-500.0,0.00027671,2]
[312370655,1705840242379,-500.0,0.00027671,2]
[312370657,1705840242388,-596.3317369,0.00027671,2]
[312370659,1705840242397,-500.0,0.00027671,2]
[312370661,1705840242407,-579.18,0.00027671,2]
[312370663,1705840242416,-532.99,0.00027671,2]
[312370665,1705840242425,-689.35,0.00027671,2]
[312370667,1705840242435,-753.26,0.00027671,2]
[312370669,1705840242444,-500.0,0.00027671,2]
[312370671,1705840242454,-514.32,0.00027671,2]
[312370673,1705840242463,-2260.2,0.00027671,2]
[312370675,1705840242472,-500.0,0.00027671,2]
[312370677,1705840242481,-500.0,0.00027671,2]
[312370679,1705840242490,-500.0,0.00027671,2]
[312370681,1705840242500,-1240.77,0.00027671,2]
[312370683,1705840242509,-594.84353903,0.00027671,2]
[312370685,1705840242518,-646.96,0.00027671,2]
[312370687,1705840242527,-500.0,0.00027671,2]
[312370689,1705840242537,-672.79,0.00027671,2]
[312370691,1705840242546,-500.0,0.00027671,2]
[312370693,1705840242555,-253.62744045,0.00027708,2]
[312370695,1705840242565,-253.62744045,0.00027914,2]
[312370697,1705840242575,-4541.19625418,0.00027924,5]
[312370699,1705840242584,-2902.69148187,0.00027944,2]
[312370701,1705840242594,-500.0,0.00027945,2]
[312370703,1705840242604,-512.58199465,0.00027945,2]
[312370705,1705840242613,-500.0,0.00027945,2]
[312370707,1705840242622,-618.6,0.00027945,2]
[312370709,1705840242631,-500.0,0.00027945,2]
[312370711,1705840242640,-503.48571087,0.00027945,2]
[312370712,1705840242650,-500.0,0.00027945,2]
[312370714,1705840242659,-500.0,0.00027945,2]
[312370716,1705840242669,-500.0,0.00027945,2]
[312370718,1705840242679,-503.44,0.00027945,2]
[312370720,1705840242688,-500.0,0.00027945,2]
[312370733,1705840242806,-500.0,0.00027945,2]
[312370737,1705840242815,-500.0,0.00027945,2]
[312370741,1705840242824,-500.0,0.00027945,2]
[312370745,1705840242834,-500.0,0.00027945,2]
[312370749,1705840242843,-519.56,0.00027945,2]
[312370753,1705840242852,-500.0,0.00027945,2]
[312370755,1705840242861,-349.449581,0.00027945,2]
[312370758,1705840242872,-500.0,0.00027945,2]
[312370761,1705840242883,-916.26,0.00027945,2]
[312370764,1705840242894,-500.0,0.00027945,2]
[312370767,1705840242904,-500.0,0.00027945,2]
[312370770,1705840242914,-500.0,0.00027945,2]
[312370773,1705840242923,-500.0,0.00027945,2]
[312370778,1705840242933,-500.0,0.00027945,2]
[312370781,1705840242942,-500.0,0.00027945,2]
[312370784,1705840242951,-500.0,0.00027945,2]
[312370789,1705840242962,-500.0,0.00027945,2]
[312370791,1705840242972,-500.0,0.00027945,2]
[312370794,1705840242982,-704.47,0.00027945,2]
[312370799,1705840242992,-500.0,0.00027945,2]
[312370801,1705840243001,-500.0,0.00027945,2]
[312370804,1705840243012,-1541.91,0.00027945,2]
[312370808,1705840243021,-500.0,0.00027945,2]
[312370810,1705840243031,-500.0,0.00027945,2]
[312370813,1705840243040,-2181.38,0.00027945,2]
[312370816,1705840243051,-286.77019817,0.00027945,2]
[312370818,1705840243060,-540.66,0.00027945,2]
[312370821,1705840243069,-500.0,0.00027945,2]
[312370822,1705840243078,-500.0,0.00027945,2]
[312370824,1705840243087,-500.0,0.00027945,2]
[312370826,1705840243097,-500.0,0.00027945,2]
[312370827,1705840243107,-500.0,0.00027945,2]
[312370828,1705840243116,-500.0,0.00027945,2]
[312370829,1705840243125,-500.0,0.00027945,2]
[312370830,1705840243134,-500.0,0.00027945,2]
[312370831,1705840243143,-635.76,0.00027945,2]
[312370832,1705840243152,-500.0,0.00027945,2]
[312370833,1705840243162,-500.0,0.00027945,2]
[312370835,1705840243171,-803.85,0.00027945,2]
[312370837,1705840243180,-1170.33,0.00027945,2]
[312370839,1705840243190,-543.14,0.00027945,2]
[312370841,1705840243199,-500.0,0.00027945,2]
[312370843,1705840243208,-500.0,0.00027945,2]
[312370844,1705840243218,-958.48,0.00027945,2]
[312370847,1705840243227,-500.0,0.00027945,2]
[312370849,1705840243236,-500.0,0.00027945,2]
[312370851,1705840243245,-1633.95,0.00027945,2]
[312370853,1705840243254,-500.0,0.00027945,2]
[312370854,1705840243263,-500.0,0.00027945,2]
[312370856,1705840243272,-500.0,0.00027945,2]
[312370858,1705840243281,-481.0323032,0.00027945,2]
[312370861,1705840243300,-1246.9776968,0.00027945,2]
[312370863,1705840243309,-952.8,0.00027945,2]
[312370865,1705840243318,-500.0,0.00027945,2]
[312370867,1705840243328,-500.0,0.00027945,2]
[312370869,1705840243338,-500.0,0.00027945,2]
[312370871,1705840243347,-536.42,0.00027945,2]
[312370873,1705840243357,-952.24,0.00027945,2]
[312370875,1705840243366,-500.0,0.00027945,2]
[312370877,1705840243374,-861.77,0.00027945,2]
[312370879,1705840243383,-500.0,0.00027945,2]
[312370881,1705840243392,-4977.87,0.00027945,2]
[312370883,1705840243401,-16015.78,0.00027945,2]
[312370885,1705840243410,-500.0,0.00027945,2]
[312370887,1705840243419,-500.0,0.00027945,2]
[312370889,1705840243428,-500.0,0.00027945,2]
[312370891,1705840243438,-1087.03,0.00027945,2]
[312370893,1705840243447,-500.0,0.00027945,2]
[312370895,1705840243456,-652.2,0.00027945,2]
[312370897,1705840243465,-453.82432863,0.00027945,2]
[312370899,1705840243474,-500.0,0.00027945,2]
[312370901,1705840243483,-500.0,0.00027945,2]
[312370903,1705840243492,-500.0,0.00027945,2]
[312370905,1705840243501,-500.0,0.00027945,2]
[312370907,1705840243510,-7546.36,0.00027945,2]
[312370908,1705840243519,-1011.81,0.00027945,2]
[312370910,1705840243528,-500.0,0.00027945,2]
[312370912,1705840243537,-2594.81,0.00027945,2]
[312370914,1705840243546,-880.16,0.00027945,2]
[312370916,1705840243554,-4983.37,0.00027945,2]
[312370918,1705840243564,-500.0,0.00027945,2]
[312370920,1705840243573,-500.0,0.00027945,2]
[312370922,1705840243582,-500.0,0.00027945,2]
[312370924,1705840243592,-500.0,0.00027945,2]
[312370926,1705840243600,-6897.52,0.00027945,2]
[312370928,1705840243609,-503.44840265,0.00027945,2]
[312370930,1705840243619,-263.76446856,0.00027945,2]
[312370932,1705840243628,-500.0,0.00027945,2]
[312370934,1705840243637,-500.0,0.00027945,2]
[312370936,1705840243646,-4199.62,0.00027945,2]
[312370938,1705840243654,-1073.8,0.00027945,2]
[312370940,1705840243664,-6888.73,0.00027945,2]
[312370942,1705840243672,-1239.46,0.00027945,2]
[312370944,1705840243681,-1032.53,0.00027945,2]
[312370946,1705840243691,-11828.99,0.00027945,2]
[312370948,1705840243700,-1691.9,0.00027945,2]
[312370951,1705840243712,-500.0,0.00027945,2]
[312370953,1705840243722,-500.0,0.00027945,2]
[312370955,1705840243733,-500.0,0.00027945,2]
[312370957,1705840243741,-500.0,0.00027945,2]
[312370959,1705840243750,-500.0,0.00027945,2]
[312370961,1705840243759,-500.0,0.00027945,2]
[312370963,1705840243768,-500.0,0.00027945,2]
[312370964,1705840243777,-1479.67,0.00027945,2]
[312370966,1705840243786,-500.0,0.00027945,2]
[312370968,1705840243795,-1932.46,0.00027945,2]
[312370970,1705840243804,-500.0,0.00027945,2]
[312370972,1705840243813,-500.0,0.00027945,2]
[312370974,1705840243822,-500.0,0.00027945,2]
[312370976,1705840243830,-500.0,0.00027945,2]
[312370978,1705840243839,-500.0,0.00027945,2]
[312370980,1705840243848,-500.0,0.00027945,2]
[312370982,1705840243857,-973.14,0.00027945,2]
[312370984,1705840243865,-1088.96,0.00027945,2]
[312370986,1705840243875,-500.0,0.00027945,2]
[312370988,1705840243886,-500.0,0.00027945,2]
[312370990,1705840243895,-500.0,0.00027945,2]
[312370992,1705840243904,-500.0,0.00027945,2]
[312370994,1705840243913,-500.0,0.00027945,2]
[312370996,1705840243922,-1000.0,0.00027945,2]
[312370998,1705840243932,-695.17,0.00027945,2]
[312371000,1705840243941,-500.0,0.00027945,2]
[312371002,1705840243950,-270.22224209,0.00027945,2]
[312371004,1705840243962,-579.18,0.00027945,2]
[312371006,1705840243971,-532.99,0.00027945,2]
[312371007,1705840243981,-689.35,0.00027945,2]
[312371009,1705840243990,-753.26,0.00027945,2]
[312371011,1705840243999,-500.0,0.00027945,2]
[312371013,1705840244007,-514.32,0.00027945,2]
[312371015,1705840244017,-2260.2,0.00027945,2]
[312371017,1705840244027,-500.0,0.00027945,2]
[312371019,1705840244036,-500.0,0.00027945,2]
[312371021,1705840244045,-500.0,0.00027945,2]
[312371023,1705840244054,-1240.77,0.00027945,2]
[312371025,1705840244063,-646.96,0.00027945,2]
[312371027,1705840244072,-500.0,0.00027945,2]
[312371029,1705840244081,-672.79,0.00027945,2]
[312371031,1705840244091,-500.0,0.00027945,2]
[312371033,1705840244100,-277.23266737,0.00028,2]
[312371035,1705840244109,-290.23210975,0.00028,2]
[312371037,1705840244117,-253.62744045,0.00028119,2]
[312371039,1705840244126,-175.18966106,0.00028149,2]
[312371042,1705840244136,-555.24243185,0.00028149,2]
[312371044,1705840244146,-327.38324213,0.00028218,2]
[312371045,1705840244155,-150.98905493,0.00028218,2]
[312371048,1705840244165,-500.0,0.00028218,2]
[312371049,1705840244174,-500.0,0.00028218,2]
[312371051,1705840244183,-500.0,0.00028218,2]
[312371053,1705840244192,-500.0,0.00028218,2]
[312371055,1705840244201,-631.5949177,0.00028218,2]
[312371057,1705840244210,-496.4743012,0.00028218,2]
[312371059,1705840244220,-500.0,0.00028218,2]
[312371061,1705840244229,-500.0,0.00028218,2]
[312371063,1705840244237,-224.6991106,0.00028218,2]
[312371065,1705840244246,-500.0,0.00028218,2]
[312371067,1705840244255,-405.63662955,0.00028218,2]
[312371069,1705840244264,-500.0,0.00028218,2]
[312371071,1705840244273,-500.0,0.00028218,2]
[312371073,1705840244282,-500.0,0.00028218,2]
[312371075,1705840244291,-265.79563767,0.00028218,2]
[312371077,1705840244300,-500.0,0.00028218,2]
[312371079,1705840244308,-500.0,0.00028218,2]
[312371081,1705840244318,-500.0,0.00028218,2]
[312371083,1705840244327,-500.0,0.00028218,2]
[312371085,1705840244336,-500.0,0.00028218,2]
[312371087,1705840244345,-500.0,0.00028218,2]
[312371089,1705840244354,-550.60065276,0.00028218,2]
[312371091,1705840244363,-500.0,0.00028218,2]
[312371093,1705840244371,-500.0,0.00028218,2]
[312371095,1705840244380,-500.0,0.00028218,2]
[312371097,1705840244389,-500.0,0.00028218,2]
[312371099,1705840244398,-500.0,0.00028218,2]
[312371101,1705840244407,-500.0,0.00028218,2]
[312371103,1705840244416,-500.0,0.00028218,2]
[312371105,1705840244425,-500.0,0.00028218,2]
[312371107,1705840244434,-500.0,0.00028218,2]
[312371109,1705840244443,-500.0,0.00028218,2]
[312371111,1705840244452,-500.0,0.00028218,2]
[312371113,1705840244461,-500.0,0.00028218,2]
[312371115,1705840244471,-500.0,0.00028218,2]
[312371117,1705840244480,-640.64395974,0.00028218,2]
[312371119,1705840244489,-500.0,0.00028218,2]
[312371121,1705840244497,-500.0,0.00028218,2]
[312371123,1705840244506,-361.18622718,0.00028218,2]
[312371125,1705840244514,-500.0,0.00028218,2]
[312371127,1705840244523,-500.0,0.00028218,2]
[312371128,1705840244532,-500.0,0.00028218,2]
[312371130,1705840244541,-500.0,0.00028219,2]
[312371132,1705840244551,-500.0,0.00028219,2]
[312371135,1705840244560,-618.6,0.00028219,2]
[312371137,1705840244569,-500.0,0.00028219,2]
[312371139,1705840244578,-500.0,0.00028219,2]
[312371141,1705840244587,-500.0,0.00028219,2]
[312371143,1705840244597,-500.0,0.00028219,2]
[312371145,1705840244606,-503.44,0.00028219,2]
[312371147,1705840244615,-500.0,0.00028219,2]
[312371149,1705840244624,-500.0,0.00028219,2]
[312371150,1705840244632,-500.0,0.00028219,2]
[312371152,1705840244641,-500.0,0.00028219,2]
[312371154,1705840244650,-500.0,0.00028219,2]
[312371156,1705840244659,-519.56,0.00028219,2]
[312371158,1705840244668,-500.0,0.00028219,2]
[312371160,1705840244677,-500.0,0.00028219,2]
[312371162,1705840244687,-916.26,0.00028219,2]
[312371164,1705840244696,-500.0,0.00028219,2]
[312371166,1705840244705,-500.0,0.00028219,2]
[312371168,1705840244714,-500.0,0.00028219,2]
[312371170,1705840244723,-500.0,0.00028219,2]
[312371172,1705840244732,-500.0,0.00028219,2]
[312371174,1705840244742,-500.0,0.00028219,2]
[312371176,1705840244750,-500.0,0.00028219,2]
[312371178,1705840244759,-500.0,0.00028219,2]
[312371180,1705840244768,-500.0,0.00028219,2]
[312371182,1705840244777,-704.47,0.00028219,2]
[312371184,1705840244786,-500.0,0.00028219,2]
[312371186,1705840244795,-500.0,0.00028219,2]
[312371188,1705840244804,-1541.91,0.00028219,2]
[312371190,1705840244813,-500.0,0.00028219,2]
[312371192,1705840244821,-500.0,0.00028219,2]
[312371194,1705840244830,-2181.38,0.00028219,2]
[312371196,1705840244839,-540.66,0.00028219,2]
[312371198,1705840244848,-500.0,0.00028219,2]
[312371199,1705840244857,-500.0,0.00028219,2]
[312371201,1705840244866,-500.0,0.00028219,2]
[312371203,1705840244876,-456.24369691,0.00028219,2]
[312371205,1705840244889,-500.0,0.00028219,2]
[312371207,1705840244898,-500.0,0.00028219,2]
[312371210,1705840244908,-635.76,0.00028219,2]
[312371211,1705840244917,-500.0,0.00028219,2]
[312371213,1705840244927,-500.0,0.00028219,2]
[312371216,1705840244937,-803.85,0.00028219,2]
[312371217,1705840244946,-1170.33,0.00028219,2]
[312371219,1705840244955,-543.14,0.00028219,2]
[312371221,1705840244965,-500.0,0.00028219,2]
[312371223,1705840244974,-500.0,0.00028219,2]
[312371225,1705840244983,-958.48,0.00028219,2]
[312371227,1705840244992,-500.0,0.00028219,2]
[312371229,1705840245000,-500.0,0.00028219,2]
[312371231,1705840245009,-1633.95,0.00028219,2]
[312371233,1705840245019,-500.0,0.00028219,2]
[312371235,1705840245028,-500.0,0.00028219,2]
[312371237,1705840245037,-500.0,0.00028219,2]
[312371239,1705840245046,-1728.01,0.00028219,2]
[312371241,1705840245054,-952.8,0.00028219,2]
[312371243,1705840245063,-500.0,0.00028219,2]
[312371245,1705840245073,-500.0,0.00028219,2]
[312371247,1705840245081,-536.42,0.00028219,2]
[312371249,1705840245091,-500.0,0.00028219,2]
[312371251,1705840245099,-952.24,0.00028219,2]
[312371253,1705840245108,-861.77,0.00028219,2]
[312371255,1705840245117,-500.0,0.00028219,2]
[312371257,1705840245126,-4977.87,0.00028219,2]
[312371259,1705840245134,-16015.78,0.00028219,2]
[312371261,1705840245143,-500.0,0.00028219,2]
[312371263,1705840245152,-500.0,0.00028219,2]